fUSD/lending_fUSD_20250609
["ID","MTS","AMOUNT","RATE_DAILY","PERIOD"]
[365102772,1749466271429,-328.0,0.00027123,2]
[365102773,1749466271438,-328.0,0.00027123,2]
[365102774,1749466271447,-328.0,0.00027123,2]
[365102775,1749466271456,-328.0,0.00027123,2]
[365102776,1749466271466,-328.0,0.00027123,2]
[365102777,1749466271475,-328.0,0.00027123,2]
[365102778,1749466271485,-328.0,0.00027123,2]
[365102779,1749466271495,-328.0,0.00027123,2]
[365102780,1749466271506,-328.0,0.00027123,2]
[365102781,1749466271516,-328.0,0.00027123,2]
[365102782,1749466271525,-328.0,0.00027123,2]
[365102783,1749466271535,-328.0,0.00027123,2]
[365102784,1749466271545,-328.0,0.00027123,2]
[365102785,1749466271557,-328.0,0.00027123,2]
[365102786,1749466271568,-328.0,0.00027123,2]
[365102787,1749466271578,-328.0,0.00027123,2]
[365102788,1749466271588,-328.0,0.00027123,2]
[365102789,1749466271597,-328.0,0.00027123,2]
[365102790,1749466271607,-328.0,0.00027123,2]
[365102791,1749466271617,-328.0,0.00027123,2]
[365102792,1749466271626,-328.0,0.00027123,2]
[365102793,1749466271636,-328.0,0.00027123,2]
[365102794,1749466271645,-328.0,0.00027123,2]
[365102795,1749466271806,-328.0,0.00027123,2]
[365102796,1749466271817,-328.0,0.00027123,2]
[365102797,1749466271827,-328.0,0.00027123,2]
[365102798,1749466271836,-328.0,0.00027123,2]
[365102799,1749466271845,-328.0,0.00027123,2]
[365102800,1749466271855,-328.0,0.00027123,2]
[365102801,1749466271864,-328.0,0.00027123,2]
[365102802,1749466271876,-328.0,0.00027123,2]
[365102803,1749466271886,-328.0,0.00027123,2]
[365102804,1749466271895,-328.0,0.00027123,2]
[365102805,1749466271905,-328.0,0.00027123,2]
[365102806,1749466271915,-328.0,0.00027123,2]
[365102807,1749466271925,-328.0,0.00027123,2]
[365102808,1749466271935,-328.0,0.00027123,2]
[365102809,1749466271945,-328.0,0.00027123,2]
[365102810,1749466271955,-328.0,0.00027123,2]
[365102811,1749466271965,-328.0,0.00027123,2]
[365102812,1749466271975,-328.0,0.00027123,2]
[365102813,1749466271984,-328.0,0.00027123,2]
[365102814,1749466271994,-328.0,0.00027123,2]
[365102815,1749466272006,-328.0,0.00027123,2]
[365102816,1749466272015,-328.0,0.00027123,2]
[365102817,1749466272024,-328.0,0.00027123,2]
[365102818,1749466272034,-328.0,0.00027123,2]
[365102819,1749466272043,-328.0,0.00027123,2]
[365102820,1749466272052,-328.0,0.00027123,2]
[365102821,1749466272062,-328.0,0.00027123,2]
[365102822,1749466272071,-328.0,0.00027123,2]
[365102823,1749466272081,-328.0,0.00027123,2]
[365102824,1749466272090,-328.0,0.00027123,2]
[365102825,1749466272103,-328.0,0.00027123,2]
[365102826,1749466272114,-328.0,0.00027123,2]
[365102827,1749466272124,-328.0,0.00027123,2]
[365102828,1749466272137,-328.0,0.00027123,2]
[365102829,1749466272147,-328.0,0.00027123,2]
[365102830,1749466272156,-328.0,0.00027123,2]
[365102831,1749466272165,-328.0,0.00027123,2]
[365102832,1749466272175,-328.0,0.00027123,2]
[365102833,1749466272184,-328.0,0.00027123,2]
[365102834,1749466272194,-328.0,0.00027123,2]
[365102835,1749466272203,-328.0,0.00027123,2]
[365102836,1749466272212,-328.0,0.00027123,2]
[365102837,1749466272222,-328.0,0.00027123,2]
[365102838,1749466272231,-328.0,0.00027123,2]
[365102839,1749466272240,-328.0,0.00027123,2]
[365102840,1749466272250,-328.0,0.00027123,2]
[365102841,1749466272259,-328.0,0.00027123,2]
[365102842,1749466272268,-328.0,0.00027123,2]
[365102843,1749466272277,-328.0,0.00027123,2]
[365102844,1749466272287,-328.0,0.00027123,2]
[365102845,1749466272296,-328.0,0.00027123,2]
[365102846,1749466272307,-328.0,0.00027123,2]
[365102847,1749466272316,-328.0,0.00027123,2]
[365102848,1749466272326,-328.0,0.00027123,2]
[365102849,1749466272335,-328.0,0.00027123,2]
[365102850,1749466272345,-328.0,0.00027123,2]
[365102851,1749466272354,-328.0,0.00027123,2]
[365102852,1749466272364,-328.0,0.00027123,2]
[365102853,1749466272373,-328.0,0.00027123,2]
[365102854,1749466272383,-328.0,0.00027123,2]
[365102855,1749466272392,-328.0,0.00027123,2]
[365102856,1749466272402,-328.0,0.00027123,2]
[365102857,1749466272412,-328.0,0.00027123,2]
[365102858,1749466272421,-328.0,0.00027123,2]
[365102859,1749466272431,-328.0,0.00027123,2]
[365102860,1749466272440,-328.0,0.00027123,2]
[365102861,1749466272449,-328.0,0.00027123,2]
[365102862,1749466272458,-328.0,0.00027123,2]
[365102863,1749466272467,-328.0,0.00027123,2]
[365102864,1749466272476,-328.0,0.00027123,2]
[365102865,1749466272485,-328.0,0.00027123,2]
[365102866,1749466272494,-3573.06,0.00027123,2]
[365102867,1749466272504,-150.0,0.00027123,2]
[365102868,1749466272513,-248.71531821,0.00027288,2]
[365102869,1749466272522,-181.08010149,0.00027288,2]
[365102870,1749466272532,-2000.0,0.00027299,2]
[365102871,1749466272541,-1088.0,0.00027349,120]
[365102872,1749466272550,-480.0,0.00027397,2]
[365102873,1749466272561,-480.0,0.00027397,2]
[365102874,1749466272571,-480.0,0.00027397,2]
[365102875,1749466272580,-459.11690671,0.00027397,2]
[365102876,1749466272590,-481.66132008,0.00027397,2]
[365102877,1749466272599,-480.0,0.00027397,2]
[365102878,1749466272609,-480.0,0.00027397,2]
[365102879,1749466272618,-480.0,0.00027397,2]
[365102880,1749466272627,-163.20371344,0.00027397,2]
[365102881,1749466272638,-480.0,0.00027397,2]
[365102882,1749466272648,-480.0,0.00027397,2]
[365102883,1749466272657,-241.17133925,0.00027397,2]
[365102884,1749466272666,-480.0,0.00027397,2]
[365102885,1749466272675,-480.0,0.00027397,2]
[365102886,1749466272684,-480.0,0.00027397,2]
[365102887,1749466272693,-480.0,0.00027397,2]
[365102888,1749466272702,-480.0,0.00027397,2]
[365102889,1749466272710,-480.0,0.00027397,2]
[365102890,1749466272719,-480.0,0.00027397,2]
[365102891,1749466272728,-480.0,0.00027397,2]
[365102892,1749466272737,-480.0,0.00027397,2]
[365102893,1749466272746,-480.0,0.00027397,2]
[365102894,1749466272755,-365.98,0.00027397,2]
[365102895,1749466272764,-480.0,0.00027397,2]
[365102896,1749466272773,-480.0,0.00027397,2]
[365102897,1749466272782,-465.40257588,0.00027397,2]
[365102898,1749466272791,-420.0,0.00027397,2]
[365102899,1749466272802,-462.66103318,0.00027397,2]
[365102900,1749466272811,-455.44407391,0.00027397,2]
[365102901,1749466272820,-480.0,0.00027397,2]
[365102902,1749466272829,-666.97635509,0.00027397,120]
[365102903,1749466272838,-480.0,0.00027397,2]
[365102904,1749466272847,-271.67790832,0.00027397,2]
[365102905,1749466272857,-480.0,0.00027397,2]
[365102906,1749466272867,-600.0,0.00027397,30]
[365102907,1749466272877,-480.0,0.00027397,2]
[365102908,1749466272886,-600.0,0.00027397,30]
[365102909,1749466272895,-600.0,0.00027397,30]
[365102910,1749466272904,-480.0,0.00027397,2]
[365102911,1749466272913,-480.0,0.00027397,2]
[365102912,1749466272923,-161.30264757,0.00027397,2]
[365102913,1749466272932,-480.0,0.00027397,2]
[365102914,1749466272941,-560.49,0.00027397,2]
[365102915,1749466272951,-480.0,0.00027397,2]
[365102916,1749466272960,-480.0,0.00027397,2]
[365102917,1749466272970,-480.0,0.00027397,2]
[365102918,1749466272979,-480.0,0.00027397,2]
[365102919,1749466272989,-480.0,0.00027397,2]
[365102920,1749466272998,-480.0,0.00027397,2]
[365102921,1749466273008,-480.0,0.00027397,2]
[365102922,1749466273018,-480.0,0.00027397,2]
[365102923,1749466273027,-471.63700926,0.00027397,2]
[365102924,1749466273036,-480.0,0.00027397,2]
[365102925,1749466273046,-480.0,0.00027397,2]
[365102926,1749466273055,-929.92,0.00027397,2]
[365102927,1749466273064,-480.0,0.00027397,2]
[365102928,1749466273073,-480.0,0.00027397,2]
[365102929,1749466273082,-480.0,0.00027397,2]
[365102930,1749466273091,-480.0,0.00027397,2]
[365102931,1749466273100,-480.0,0.00027397,2]
[365102932,1749466273110,-480.0,0.00027397,2]
[365102933,1749466273119,-534.91,0.00027397,2]
[365102934,1749466273131,-480.0,0.00027397,2]
[365102935,1749466273146,-480.0,0.00027397,2]
[365102936,1749466273161,-1021.13,0.00027397,2]
[365102937,1749466273176,-480.0,0.00027397,2]
[365102938,1749466273195,-481.27869741,0.00027397,2]
[365102939,1749466273211,-480.0,0.00027397,2]
[365102940,1749466273226,-480.0,0.00027397,2]
[365102941,1749466273243,-721.83,0.00027397,2]
[365102942,1749466273259,-988.21,0.00027397,2]
[365102943,1749466273274,-480.0,0.00027397,2]
[365102944,1749466273290,-1267.92,0.00027397,2]
[365102945,1749466273307,-480.0,0.00027397,2]
[365102946,1749466273322,-480.0,0.00027397,2]
[365102947,1749466273337,-480.0,0.00027397,2]
[365102948,1749466273352,-420.0,0.00027397,2]
[365102949,1749466273369,-1301.38,0.00027397,2]
[365102950,1749466273383,-480.0,0.00027397,2]
[365102951,1749466273395,-1091.15,0.00027397,2]
[365102952,1749466273412,-480.0,0.00027397,2]
[365102953,1749466273425,-426.2013567,0.00027397,2]
[365102954,1749466273438,-421.9268792,0.00027397,2]
[365102955,1749466273455,-353.30903654,0.00027397,2]
[365102956,1749466273468,-480.0,0.00027397,2]
[365102957,1749466273481,-473.21366376,0.00027397,2]
[365102958,1749466273496,-480.0,0.00027397,2]
[365102959,1749466273511,-480.0,0.00027397,2]
[365102960,1749466273528,-480.0,0.00027397,2]
[365102961,1749466273542,-480.0,0.00027397,2]
[365102962,1749466273557,-480.0,0.00027397,2]
[365102963,1749466273572,-480.0,0.00027397,2]
[365102964,1749466273585,-593.78,0.00027397,2]
[365102965,1749466273598,-480.0,0.00027397,2]
[365102966,1749466273611,-480.0,0.00027397,2]
[365102967,1749466273626,-480.0,0.00027397,2]
[365102968,1749466273640,-480.0,0.00027397,2]
[365102969,1749466273654,-480.0,0.00027397,2]
[365102970,1749466273668,-491.96032128,0.00027397,2]
[365102971,1749466273682,-2125.48,0.00027397,2]
[365102972,1749466273695,-480.0,0.00027397,2]
[365102973,1749466273708,-480.0,0.00027397,2]
[365102974,1749466273723,-480.0,0.00027397,2]
[365102975,1749466273736,-664.01,0.00027397,2]
[365102976,1749466273749,-480.0,0.00027397,2]
[365102977,1749466273762,-480.0,0.00027397,2]
[365102978,1749466273776,-480.0,0.00027397,2]
[365102979,1749466273790,-856.12,0.00027397,2]
[365102980,1749466273805,-480.0,0.00027397,2]
[365102981,1749466273820,-480.0,0.00027397,2]
[365102982,1749466273833,-447.01657088,0.00027397,2]
[365102983,1749466273847,-480.0,0.00027397,2]
[365102984,1749466273859,-445.72205612,0.00027397,2]
[365102985,1749466273872,-627.85,0.00027397,2]
[365102986,1749466273885,-480.0,0.00027397,2]
[365102987,1749466273898,-549.34428304,0.00027397,2]
[365102988,1749466273911,-480.0,0.00027397,2]
[365102989,1749466273923,-342.06822644,0.00027397,2]
[365102990,1749466273937,-480.0,0.00027397,2]
[365102991,1749466273950,-448.13758326,0.00027397,2]
[365102992,1749466273964,-480.0,0.00027397,2]
[365102993,1749466273977,-480.0,0.00027397,2]
[365102994,1749466273991,-500.0,0.00027397,2]
[365102995,1749466274003,-500.0,0.00027397,2]
[365102996,1749466274016,-691.28,0.00027397,2]
[365102997,1749466274030,-183.59279717,0.00027397,2]
[365102998,1749466274044,-569.32,0.00027397,2]
[365102999,1749466274057,-537.64,0.00027397,2]
[365103000,1749466274071,-537.64,0.00027397,2]
[365103001,1749466274083,-537.64,0.00027397,2]
[365103002,1749466274097,-616.9,0.00027397,2]
[365103003,1749466274109,-706.24,0.00027397,2]
[365103004,1749466274122,-473.70842636,0.00027397,2]
[365103005,1749466274135,-480.0,0.00027397,2]
[365103006,1749466274148,-480.0,0.00027397,2]
[365103007,1749466274161,-1467.86,0.00027397,2]
[365103008,1749466274175,-480.0,0.00027397,2]
[365103009,1749466274188,-480.0,0.00027397,2]
[365103010,1749466274201,-480.0,0.00027397,2]
[365103011,1749466274214,-480.0,0.00027397,2]
[365103012,1749466274228,-969.56,0.00027397,2]
[365103013,1749466274240,-480.0,0.00027397,2]
[365103014,1749466274253,-852.82,0.00027397,2]
[365103015,1749466274266,-480.0,0.00027397,2]
[365103016,1749466274283,-480.0,0.00027397,2]
[365103017,1749466274296,-166.45063177,0.00027397,2]
[365103018,1749466274309,-480.0,0.00027397,2]
[365103019,1749466274322,-480.0,0.00027397,2]
[365103020,1749466274335,-1250.18,0.00027397,2]
[365103021,1749466274349,-480.0,0.00027397,2]
[365103022,1749466274362,-899.05,0.00027397,2]
[365103023,1749466274374,-406.84645408,0.00027397,2]
[365103024,1749466274388,-408.51499318,0.00027397,2]
[365103025,1749466274400,-480.0,0.00027397,2]
[365103026,1749466274413,-554.6,0.00027397,2]
[365103027,1749466274425,-480.0,0.00027397,2]
[365103028,1749466274439,-984.21,0.00027397,2]
[365103029,1749466274451,-860.12,0.00027397,2]
[365103030,1749466274464,-480.0,0.00027397,2]
[365103031,1749466274476,-480.0,0.00027397,2]
[365103032,1749466274488,-480.0,0.00027397,2]
[365103033,1749466274502,-480.0,0.00027397,2]
[365103034,1749466274515,-480.0,0.00027397,2]
[365103035,1749466274528,-480.0,0.00027397,2]
[365103036,1749466274540,-480.0,0.00027397,2]
[365103037,1749466274553,-303.98550522,0.00027397,2]
[365103038,1749466274568,-1073.59,0.00027397,2]
[365103039,1749466274581,-680.21,0.00027397,2]
[365103040,1749466274596,-480.0,0.00027397,2]
[365103041,1749466274609,-480.0,0.00027397,2]
[365103042,1749466274623,-480.0,0.00027397,2]
[365103043,1749466274636,-480.0,0.00027397,2]
[365103044,1749466274648,-1360.4,0.00027397,2]
[365103045,1749466274661,-480.0,0.00027397,2]
[365103046,1749466274673,-480.0,0.00027397,2]
[365103047,1749466274685,-426.59940288,0.00027397,2]
[365103048,1749466274697,-494.84,0.00027397,2]
[365103049,1749466274709,-480.0,0.00027397,2]
[365103050,1749466274722,-480.0,0.00027397,2]
[365103051,1749466274735,-480.0,0.00027397,2]
[365103052,1749466274748,-480.0,0.00027397,2]
[365103053,1749466274760,-480.0,0.00027397,2]
[365103054,1749466274772,-722.18,0.00027397,2]
[365103055,1749466274785,-480.0,0.00027397,2]
[365103056,1749466274797,-556.85,0.00027397,2]
[365103057,1749466274810,-460.0,0.00027397,2]
[365103058,1749466274822,-456.46498868,0.00027397,2]
[365103059,1749466274834,-480.0,0.00027397,2]
[365103060,1749466274847,-480.0,0.00027397,2]
[365103061,1749466274859,-805.54,0.00027397,2]
[365103062,1749466274872,-610.12,0.00027397,2]
[365103063,1749466274885,-480.0,0.00027397,2]
[365103064,1749466274897,-480.0,0.00027397,2]
[365103065,1749466274909,-458.93990394,0.00027397,2]
[365103066,1749466274923,-707.31,0.00027397,2]
[365103067,1749466274935,-934.38,0.00027397,2]
[365103068,1749466274948,-480.0,0.00027397,2]
[365103069,1749466274961,-480.0,0.00027397,2]
[365103070,1749466274973,-550.8,0.00027397,2]
[365103071,1749466274986,-947.54,0.00027397,2]
[365103072,1749466274999,-480.0,0.00027397,2]
[365103073,1749466275276,-1218.85,0.00027397,2]
[365103074,1749466275286,-587.78,0.00027397,2]
[365103075,1749466275297,-448.26239483,0.00027397,2]
[365103076,1749466275307,-480.0,0.00027397,2]
[365103077,1749466275316,-480.0,0.00027397,2]
[365103078,1749466275326,-481.31113027,0.00027397,2]
[365103079,1749466275337,-480.0,0.00027397,2]
[365103080,1749466275347,-586.54,0.00027397,2]
[365103081,1749466275357,-604.92,0.00027397,2]
[365103082,1749466275366,-480.0,0.00027397,2]
[365103083,1749466275377,-505.67,0.00027397,2]
[365103084,1749466275386,-496.73,0.00027397,2]
[365103085,1749466275396,-460.0,0.00027397,2]
[365103086,1749466275406,-1956.09,0.00027397,2]
[365103087,1749466275415,-480.0,0.00027397,2]
[365103088,1749466275425,-480.0,0.00027397,2]
[365103089,1749466275434,-480.0,0.00027397,2]
[365103090,1749466275443,-480.0,0.00027397,2]
[365103091,1749466275452,-618.85,0.00027397,2]
[365103092,1749466275462,-480.0,0.00027397,2]
[365103093,1749466275471,-460.0,0.00027397,2]
[365103094,1749466275481,-490.09,0.00027397,2]
[365103095,1749466275490,-484.94042073,0.00027397,2]
[365103096,1749466275499,-1096.76,0.00027397,2]
[365103097,1749466275509,-480.0,0.00027397,2]
[365103098,1749466275518,-750.02,0.00027397,2]
[365103099,1749466275528,-1441.64,0.00027397,2]
[365103100,1749466275537,-480.0,0.00027397,2]
[365103101,1749466275546,-438.87960206,0.00027397,2]
[365103102,1749466275555,-674.95,0.00027397,2]
[365103103,1749466275569,-480.0,0.00027397,2]
[365103104,1749466275578,-480.0,0.00027397,2]
[365103105,1749466275587,-480.0,0.00027397,2]
[365103106,1749466275596,-519.54,0.00027397,2]
[365103107,1749466275605,-480.0,0.00027397,2]
[365103108,1749466275614,-480.0,0.00027397,2]
[365103109,1749466275624,-480.0,0.00027397,2]
[365103110,1749466275634,-565.04,0.00027397,2]
[365103111,1749466275642,-480.0,0.00027397,2]
[365103112,1749466275651,-480.0,0.00027397,2]
[365103113,1749466275660,-480.0,0.00027397,2]
[365103114,1749466275669,-505.27,0.00027397,2]
[365103115,1749466275679,-572.04,0.00027397,2]
[365103116,1749466275688,-1988.72,0.00027397,2]
[365103117,1749466275697,-480.0,0.00027397,2]
[365103118,1749466275706,-1686.83,0.00027397,2]
[365103119,1749466275715,-480.0,0.00027397,2]
[365103120,1749466275724,-1528.72,0.00027397,2]
[365103121,1749466275733,-513.03,0.00027397,2]
[365103122,1749466275741,-480.0,0.00027397,2]
[365103123,1749466275751,-950.22,0.00027397,2]
[365103124,1749466275760,-480.0,0.00027397,2]
[365103125,1749466275768,-480.0,0.00027397,2]
[365103126,1749466275777,-480.0,0.00027397,2]
[365103127,1749466275786,-480.0,0.00027397,2]
[365103128,1749466275795,-723.57,0.00027397,2]
[365103129,1749466275805,-1022.15,0.00027397,2]
[365103130,1749466275814,-480.0,0.00027397,2]
[365103131,1749466275822,-480.0,0.00027397,2]
[365103132,1749466275831,-862.84,0.00027397,2]
[365103133,1749466275841,-300.0,0.00027397,2]
[365103134,1749466275850,-480.0,0.00027397,2]
[365103135,1749466275860,-480.0,0.00027397,2]
[365103136,1749466275869,-2098.83,0.00027397,2]
[365103137,1749466275879,-482.62,0.00027397,2]
[365103138,1749466275888,-849.47,0.00027397,2]
[365103139,1749466275897,-480.0,0.00027397,2]
[365103140,1749466275907,-480.0,0.00027397,2]
[365103141,1749466275917,-1205.43,0.00027397,2]
[365103142,1749466275926,-665.76,0.00027397,2]
[365103143,1749466275937,-480.0,0.00027397,2]
[365103144,1749466275947,-877.8,0.00027397,2]
[365103145,1749466275957,-539.36,0.00027397,2]
[365103146,1749466275966,-480.0,0.00027397,2]
[365103147,1749466275975,-1239.04,0.00027397,2]
[365103148,1749466275984,-480.0,0.00027397,2]
[365103149,1749466275994,-480.0,0.00027397,2]
[365103150,1749466276003,-1442.33,0.00027397,2]
[365103151,1749466276013,-480.0,0.00027397,2]
[365103152,1749466276022,-761.03,0.00027397,2]
[365103153,1749466276032,-535.44,0.00027397,2]
[365103154,1749466276042,-480.0,0.00027397,2]
[365103155,1749466276051,-480.0,0.00027397,2]
[365103156,1749466276061,-480.0,0.00027397,2]
[365103157,1749466276071,-480.0,0.00027397,2]
[365103158,1749466276081,-1581.99,0.00027397,2]
[365103159,1749466276091,-480.0,0.00027397,2]
[365103160,1749466276101,-480.0,0.00027397,2]
[365103161,1749466276111,-480.0,0.00027397,2]
[365103162,1749466276122,-480.0,0.00027397,2]
[365103163,1749466276131,-480.0,0.00027397,2]
[365103164,1749466276141,-517.15,0.00027397,2]
[365103165,1749466276151,-643.28,0.00027397,2]
[365103166,1749466276161,-480.0,0.00027397,2]
[365103167,1749466276171,-480.0,0.00027397,2]
[365103168,1749466276182,-480.0,0.00027397,2]
[365103169,1749466276191,-480.0,0.00027397,2]
[365103170,1749466276200,-353.42929394,0.00027397,2]
[365103171,1749466276210,-480.0,0.00027397,2]
[365103172,1749466276220,-695.67,0.00027397,2]
[365103173,1749466276231,-480.0,0.00027397,2]
[365103174,1749466276242,-480.0,0.00027397,2]
[365103175,1749466276251,-480.0,0.00027397,2]
[365103176,1749466276260,-480.0,0.00027397,2]
[365103177,1749466276270,-480.0,0.00027397,2]
[365103178,1749466276280,-480.0,0.00027397,2]
[365103179,1749466276290,-480.0,0.00027397,2]
[365103180,1749466276300,-480.0,0.00027397,2]
[365103181,1749466276311,-1004.09,0.00027397,2]
[365103182,1749466276321,-1137.84,0.00027397,2]
[365103183,1749466276331,-480.0,0.00027397,2]
[365103184,1749466276340,-500.0,0.00027397,2]
[365103185,1749466276351,-480.0,0.00027397,2]
[365103186,1749466276361,-1468.79,0.00027397,2]
[365103187,1749466276372,-480.0,0.00027397,2]
[365103188,1749466276381,-538.35,0.00027397,2]
[365103189,1749466276390,-480.0,0.00027397,2]
[365103190,1749466276399,-444.13817098,0.00027397,2]
[365103191,1749466276410,-1343.11,0.00027397,2]
[365103192,1749466276420,-480.0,0.00027397,2]
[365103193,1749466276430,-412.83042347,0.00027397,2]
[365103194,1749466276439,-480.0,0.00027397,2]
[365103195,1749466276449,-509.42927945,0.00027397,2]
[365103196,1749466276459,-480.0,0.00027397,2]
[365103197,1749466276469,-1685.73,0.00027397,2]
[365103198,1749466276479,-984.78,0.00027397,2]
[365103199,1749466276489,-736.22,0.00027397,2]
[365103200,1749466276499,-467.76254616,0.00027397,2]
[365103201,1749466276509,-785.08,0.00027397,2]
[365103202,1749466276519,-527.00824585,0.00027397,2]
[365103203,1749466276529,-480.0,0.00027397,2]
[365103204,1749466276539,-480.0,0.00027397,2]
[365103205,1749466276548,-480.0,0.00027397,2]
[365103206,1749466276560,-480.0,0.00027397,2]
[365103207,1749466276570,-480.0,0.00027397,2]
[365103208,1749466276580,-1147.91,0.00027397,2]
[365103209,1749466276589,-583.55255205,0.00027397,2]
[365103210,1749466276599,-480.0,0.00027397,2]
[365103211,1749466276609,-480.0,0.00027397,2]
[365103212,1749466276620,-480.0,0.00027397,2]
[365103213,1749466276629,-480.0,0.00027397,2]
[365103214,1749466276639,-480.0,0.00027397,2]
[365103215,1749466276649,-474.93700526,0.00027397,2]
[365103216,1749466276658,-1731.15,0.00027397,2]
[365103217,1749466276667,-527.71077723,0.00027397,2]
[365103218,1749466276677,-357.88735447,0.00027397,2]
[365103219,1749466276686,-480.0,0.00027397,2]
[365103220,1749466276696,-480.0,0.00027397,2]
[365103221,1749466276705,-1622.22,0.00027397,2]
[365103222,1749466276715,-480.0,0.00027397,2]
[365103223,1749466276724,-480.0,0.00027397,2]
[365103224,1749466276734,-1905.63,0.00027397,2]
[365103225,1749466276743,-480.0,0.00027397,2]
[365103226,1749466276753,-480.0,0.00027397,2]
[365103227,1749466276762,-480.0,0.00027397,2]
[365103228,1749466276772,-462.29380278,0.00027397,2]
[365103229,1749466276781,-411.69480208,0.00027397,2]
[365103230,1749466276791,-480.0,0.00027397,2]
[365103231,1749466276801,-480.0,0.00027397,2]
[365103232,1749466276810,-752.17,0.00027397,2]
[365103233,1749466276820,-480.0,0.00027397,2]
[365103234,1749466276830,-316.11272372,0.00027397,2]
[365103235,1749466276840,-480.0,0.00027397,2]
[365103236,1749466276849,-480.0,0.00027397,2]
[365103237,1749466276859,-480.0,0.00027397,2]
[365103238,1749466276868,-250.0,0.00027397,2]
[365103239,1749466276879,-480.0,0.00027397,2]
[365103240,1749466276890,-480.0,0.00027397,2]
[365103241,1749466276899,-570.88420539,0.00027397,2]
[365103242,1749466276909,-480.0,0.00027397,2]
[365103243,1749466276919,-948.03,0.00027397,2]
[365103244,1749466276929,-298.34013702,0.00027397,2]
[365103245,1749466276938,-480.0,0.00027397,2]
[365103246,1749466276949,-474.43292697,0.00027397,2]
[365103247,1749466276958,-480.0,0.00027397,2]
[365103248,1749466276968,-480.0,0.00027397,2]
[365103249,1749466276977,-487.39449011,0.00027397,2]
[365103250,1749466276987,-480.0,0.00027397,2]
[365103251,1749466276997,-480.0,0.00027397,2]
[365103252,1749466277006,-480.0,0.00027397,2]
[365103253,1749466277015,-480.0,0.00027397,2]
[365103254,1749466277025,-480.0,0.00027397,2]
[365103255,1749466277035,-480.0,0.00027397,2]
[365103256,1749466277044,-879.54,0.00027397,2]
[365103257,1749466277053,-480.0,0.00027397,2]
[365103258,1749466277063,-781.48,0.00027397,2]
[365103259,1749466277072,-774.82,0.00027397,2]
[365103260,1749466277082,-601.8,0.00027397,2]
[365103261,1749466277091,-480.0,0.00027397,2]
[365103262,1749466277101,-192.21091961,0.00027397,2]
[365103263,1749466277110,-480.0,0.00027397,2]
[365103264,1749466277120,-480.0,0.00027397,2]
[365103265,1749466277130,-480.0,0.00027397,2]
[365103266,1749466277139,-480.0,0.00027397,2]
[365103267,1749466277149,-480.0,0.00027397,2]
[365103268,1749466277159,-480.0,0.00027397,2]
[365103269,1749466277168,-480.0,0.00027397,2]
[365103270,1749466277177,-480.0,0.00027397,2]
[365103271,1749466277186,-2016.63,0.00027397,2]